Cogmind - Beta 12 @@@ ROGUE MODE // 2023.10.29 @ 12:53:33 Player: gallo Result: Destroyed by Y-45 Defender with Beam Rifle Performance ------------- Evolutions (0) 0 Regions Visited (4) 800 Robots Destroyed (9) 45 Value Destroyed (175) 175 Prototype IDs (0) 0 Alien Tech Used (0) 0 Bonus (300) 300 TOTAL SCORE: 1320 Bonus ------- Aligned with FarCom 300 Cogmind --------- Core Integrity 0/250 Matter 268/300 Energy 99/100 System Corruption 0% Temperature Cool (9) Movement Core (100) Ox1 Location -9/Mines Parts ------- > --- POWER (1) -------- (None) > --- PROPULSION (2) --- (None) > --- UTILITY (2) ------ Small Storage Unit > --- WEAPON (2) ------- (None) > --- INVENTORY (8) ---- Reinforced Deuterium Engine Aluminum Leg Aluminum Leg Aluminum Leg Flight Unit Large Matter Pod (0) Peak State ------------ > --- POWER ------------ Ion Engine > --- PROPULSION ------- Aluminum Leg Aluminum Leg > --- UTILITY ---------- Small Storage Unit Structural Scanner > --- WEAPON ----------- Light Assault Rifle Light Cannon > --- INVENTORY -------- Reinforced Deuterium Engine Light Treads Light Treads Aluminum Leg Aluminum Leg Flight Unit EM Pulse Gun [Rating: 8] Favorites ----------- Power Ion Engine Engine Ion Engine Propulsion Aluminum Leg Leg Aluminum Leg Utility Small Storage Unit Device Structural Scanner Storage Small Storage Unit Weapon Light Cannon Energy Gun EM Pulse Gun Ballistic Gun Light Assault Rifle Ballistic Cannon Light Cannon Build | -11 -10 -10 -10 -9 ------- Run | Jun Mat Min Exi Min Slots Evolved . | . . . . . Power . | . . . . . Propulsion . | . . . . . Utility . | . . . . . Weapon . | . . . . . Parts Attached 12 | 6 3 . . 3 Power 1 | 1 . . . . Engine 1 | 1 . . . . Core . | . . . . . Reactor . | . . . . . Propulsion 2 | 2 . . . . Treads . | . . . . . Leg 2 | 2 . . . . Wheel . | . . . . . Hover . | . . . . . Flight . | . . . . . Utility 2 | 1 1 . . . Device 1 | . 1 . . . Storage 1 | 1 . . . . Processor . | . . . . . Hackware . | . . . . . Protection . | . . . . . Artifact . | . . . . . Weapon 7 | 2 2 . . 3 Energy Gun 3 | 2 . . . 1 Energy Cannon . | . . . . . Ballistic Gun 3 | . 1 . . 2 Ballistic Cannon 1 | . 1 . . . Launcher . | . . . . . Special Weapon . | . . . . . Impact Weapon . | . . . . . Slashing Weapon . | . . . . . Piercing Weapon . | . . . . . Special Melee Weapon . | . . . . . Unidentified Prototypes . | . . . . . Parts Lost 8 | . 1 . . 7 Power 1 | . . . . 1 Propulsion 2 | . . . . 2 Utility 1 | . . . . 1 Weapon 4 | . 1 . . 3 Highest Loss Streak 6 | . 1 . . 6 To Critical Strikes . | . . . . . Average Slot Usage (%) 96 | . 91 100 100 83 Engine 13 | . 14 14 14 11 Leg 27 | . 28 28 28 22 Device 12 | . 6 14 14 11 Storage 14 | . 14 14 14 14 Energy Gun 1 | . 10 . . . Ballistic Gun 12 | . 6 14 14 11 Ballistic Cannon 13 | . 10 14 14 11 Naked Turns . | . . . . . Heaviest Build 16 | 14 16 15 15 15 Greatest Support 20 | 20 20 20 20 20 Greatest Overweight (x) 3 | 2 . . . 3 Average Overweight (x) . | . . . . . Largest Inventory Capacity 8 | 8 8 8 8 8 Average Capacity 7 | 7 8 8 8 8 Most Carried 8 | 5 8 6 8 8 Average Carried 6 | 1 5 5 7 7 Final Capacity 8 | 8 8 8 8 8 Final Carried 8 | 5 4 6 8 8 Class Distribution -------------------- 100% | Mutant Dominant Class ---------------- Mutant | -10/Materials Mutant | -10/Mines Mutant | -10/Exiles Mutant | -9/Mines Resources | -11 -10 -10 -10 -9 ----------- Run | Jun Mat Min Exi Min Matter Collected 384 | 44 40 52 150 98 Remotely . | . . . . . Salvage Created 171 | . 80 . . 91 Parts 14 | . 8 . . 6 Haulers Intercepted . | . . . . . Recyclers Shooed . | . . . . . Parts Field Recycled . | . . . . . Retrieved Matter . | . . . . . Parts Self-Destructed . | . . . . . Prevented . | . . . . . Kills | -11 -10 -10 -10 -9 ------- Run | Jun Mat Min Exi Min Combat Hostiles Destroyed 9 | . 4 . . 5 Guns 3 | . 2 . . 1 Cannons 6 | . 2 . . 4 Classes Destroyed 3 | . 2 . . 1 Swarmer 6 | . 3 . . 3 Grunt 2 | . 1 . . 1 Duelist 1 | . . . . 1 Best Kill Streak 3 | . 3 . . 3 Combat Bots Only 3 | . 3 . . 3 Max Kills in Single Turn 2 | . 1 . . 2 Gunslinging . | . . . . . Exploded . | . . . . . Melee . | . . . . . Uniques/NPCs Destroyed . | . . . . . Combat | -11 -10 -10 -10 -9 -------- Run | Jun Mat Min Exi Min Damage Taken 970 | . 145 . . 825 Core 252 | . 26 . . 226 Absorbed by Shields . | . . . . . Core Remaining (%) 100 | 100 . . . . Volleys Fired 37 | . 10 1 1 25 Largest 2 | . 2 2 2 2 Hottest 80 | . 80 55 55 55 Shots Fired 61 | . 17 2 2 40 Gun 33 | . 10 1 1 21 Cannon 28 | . 7 1 1 19 Launcher . | . . . . . Special . | . . . . . Kinetic 52 | . 8 2 2 40 Thermal . | . . . . . Explosive . | . . . . . Electromagnetic 9 | . 9 . . . Robot Hit Streak 8 | . 4 . . 8 Robot Miss Streak 2 | . 2 2 . 2 Penetration Max . | . . . . . Secondary Targets . | . . . . . Shots Hit Robots 37 | . 9 . . 28 Core Hits 14 | . 5 . . 9 Critical Kills . | . . . . . Critical Parts Destroyed . | . . . . . Critical Strikes 1 | . 1 . . . Corrupt 1 | . 1 . . . Melee Attacks . | . . . . . Impact . | . . . . . Slashing . | . . . . . Piercing . | . . . . . Sneak Attacks . | . . . . . Combat Hostiles . | . . . . . Follow-up Attacks . | . . . . . Damage Inflicted 505 | . 132 . . 373 Guns 157 | . 41 . . 116 Cannons 348 | . 91 . . 257 Explosions . | . . . . . Melee . | . . . . . Ramming . | . . . . . Kinetic 472 | . 99 . . 373 Thermal . | . . . . . Explosive . | . . . . . Electromagnetic 33 | . 33 . . . Impact . | . . . . . Slashing . | . . . . . Piercing . | . . . . . Highest Corruption . | . . . . . Average Corruption . | . . . . . Corruption Purged . | . . . . . Corruption Blocked . | . . . . . Overload Shots . | . . . . . Overflow Damage . | . . . . . Projectiles . | . . . . . Explosions . | . . . . . Melee . | . . . . . Knockbacks 9 | . 2 . . 7 Impact . | . . . . . Kinetic 9 | . 2 . . 7 Secondary . | . . . . . Self-Inflicted Damage . | . . . . . Shots . | . . . . . Rammed . | . . . . . Targets Rammed . | . . . . . Kicked . | . . . . . Crushed . | . . . . . Highest Temperature 62 | . 45 14 14 62 Average Temperature 22 | . 18 10 10 26 Received Heat Transfer 297 | . 24 . . 273 Siege Activations . | . . . . . Robots Corrupted . | . . . . . Combat Hostiles . | . . . . . Parts Fried . | . . . . . Impact Corruptions . | . . . . . Robots Melted . | . . . . . Combat Hostiles . | . . . . . Parts Melted . | . . . . . Heat Transferred . | . . . . . Parts Sabotaged . | . . . . . Parts Stolen . | . . . . . Parts Stripped . | . . . . . Power Chain Reactions . | . . . . . Missiles Intercepted . | . . . . . Alert | -11 -10 -10 -10 -9 ------- Run | Jun Mat Min Exi Min Peak Influence 141 | . 121 46 . 141 Initial 46 | . . 46 . . Average 76 | . 86 46 . 101 Maximum Alert Level . | . . . . . Low Security (%) 100 | 100 100 100 . 100 Level 1 . | . . . . . Level 2 . | . . . . . Level 3 . | . . . . . Level 4 . | . . . . . Level 5 . | . . . . . High Security . | . . . . . Max Security . | . . . . . Squads Dispatched 1 | . 1 . . . Investigation . | . . . . . Extermination . | . . . . . Reinforcement 1 | . 1 . . . Assault . | . . . . . Garrison . | . . . . . Intercept . | . . . . . Searches Triggered . | . . . . . Construction Impeded . | . . . . . Haulers Reinforced . | . . . . . Active Scanning Responses . | . . . . . Cargo Convoy Interrupts . | . . . . . Stealth | -11 -10 -10 -10 -9 --------- Run | Jun Mat Min Exi Min Distress Signals 1 | . 1 . . . Communications Jammed . | . . . . . Distress Signals . | . . . . . Times Spotted 17 | . 8 2 . 7 Peak Tracking Total 4 | . 4 2 . 3 Tactical Retreats 1 | . 1 . . . Traps | -11 -10 -10 -10 -9 ------- Run | Jun Mat Min Exi Min Traps Triggered 1 | . 1 . . . Indirectly . | . . . . . Trap Hack Attempts . | . . . . . Triggered . | . . . . . Disarmed . | . . . . . Reprogrammed . | . . . . . Reused . | . . . . . Traps Extracted . | . . . . . Installed . | . . . . . Triggered . | . . . . . Most Traps Carried 2 | . . . . 2 Machines | -11 -10 -10 -10 -9 ---------- Run | Jun Mat Min Exi Min Machines Disabled . | . . . . . Max in Single Turn . | . . . . . Machines Repaired . | . . . . . Machines Sabotaged . | . . . . . Overloaded Fab Kills . | . . . . . Hacking | -11 -10 -10 -10 -9 --------- Run | Jun Mat Min Exi Min Machines Accessed 3 | . . . 3 . Terminals . | . . . . . Fabricators . | . . . . . Repair Stations . | . . . . . Recycling Units . | . . . . . Scanalyzers . | . . . . . Garrison Access . | . . . . . Total Hacks 26 | . . . 26 . Successful 26 | . . . 26 . Failed . | . . . . . Catastrophic . | . . . . . Database Lockouts . | . . . . . Manual . | . . . . . Terminals . | . . . . . Fabricators . | . . . . . Repair Stations . | . . . . . Recycling Units . | . . . . . Scanalyzers . | . . . . . Garrison Access . | . . . . . Terminal Hacks 26 | . . . 26 . Record 26 | . . . 26 . Fabricator Hacks . | . . . . . Repair Station Hacks . | . . . . . Recycling Unit Hacks . | . . . . . Scanalyzer . | . . . . . Garrison Access Hacks . | . . . . . Unauthorized Hacks . | . . . . . Terminals . | . . . . . Fabricators . | . . . . . Repair Stations . | . . . . . Recycling Units . | . . . . . Scanalyzers . | . . . . . Garrison Access . | . . . . . Data Cores Recovered . | . . . . . Used . | . . . . . Hacking Detections . | . . . . . Full Trace Events . | . . . . . Feedback Events . | . . . . . Feedback Blocked . | . . . . . Robot Schematics Acquired . | . . . . . Robots Built . | . . . . . Authchips . | . . . . . Time . | . . . . . Total Robot Build Rating . | . . . . . Part Schematics Acquired . | . . . . . Parts Built . | . . . . . Authchips . | . . . . . Time . | . . . . . Total Part Build Rating . | . . . . . Parts Repaired . | . . . . . Time . | . . . . . Parts Recycled . | . . . . . Recycled Matter . | . . . . . Retrieved Matter . | . . . . . Retrieved Components . | . . . . . Parts Scanalyzed . | . . . . . Part Schematics Acquired . | . . . . . Parts Damaged . | . . . . . Bothacking | -11 -10 -10 -10 -9 ------------ Run | Jun Mat Min Exi Min Used RIF Installer . | . . . . . Robots Hacked . | . . . . . Non-combat . | . . . . . Combat . | . . . . . Robot Hacks Applied . | . . . . . Relay Couplers Released . | . . . . . Fabnet Peak Effective % . | . . . . . Robots Rewired . | . . . . . Allies Hacked . | . . . . . Hacks Repelled . | . . . . . Allies | -11 -10 -10 -10 -9 -------- Run | Jun Mat Min Exi Min Total Allies . | . . . . . Largest Group . | . . . . . Highest-Rated Group . | . . . . . Highest-Rated Ally . | . . . . . Total Orders . | . . . . . Ally Attacks . | . . . . . Total Damage . | . . . . . Kills . | . . . . . Allies Corrupted . | . . . . . Allies Melted . | . . . . . Intel | -11 -10 -10 -10 -9 ------- Run | Jun Mat Min Exi Min Robot Analysis Total . | . . . . . Derelict Logs Recovered 2 | . . 1 . 1 Drone Launches . | . . . . . Drone Recoveries . | . . . . . Exploration | -11 -10 -10 -10 -9 ------------- Run | Jun Mat Min Exi Min Turns Passed 2056 | 81 237 132 1290 316 Spaces Moved 1603 | 61 166 107 1066 203 Core 65 | 15 . . . 50 Treads . | . . . . . Legs 1538 | 46 166 107 1066 153 Wheels . | . . . . . Hover . | . . . . . Flight . | . . . . . Fastest Speed 50 | 50 120 120 120 100 Average Speed 119 | 110 120 120 120 117 Slowest Speed 200 | 150 120 120 120 200 Overloaded Moves . | . . . . . Propulsion Burnouts . | . . . . . Robots Hopped . | . . . . . Cave-ins Triggered . | . . . . . Exploration Rate (%) 35 | 5 38 21 90 23 Regions Visited 4 Branch Regions 3 Pre-discovered Areas 1 | . . 1 . . Known Exits Taken . | . . . . . Unknown Exits Taken 4 | 1 1 1 1 . Scrap Searched . | . . . . . Spaces Dug . | . . . . . Terrain Destroyed . | . . . . . Melee . | . . . . . Projectile . | . . . . . AOE . | . . . . . Terrain Rammed . | . . . . . Walls Destroyed . | . . . . . Machines Disabled . | . . . . . Actions | -11 -10 -10 -10 -9 --------- Run | Jun Mat Min Exi Min Total 1691 | 71 188 109 1075 248 Wait 5 | . . . . 5 Move 1599 | 60 165 106 1065 203 Hop . | . . . . . Pick Up 19 | 5 5 2 2 5 Fast Attach 8 | 6 1 . . 1 Attach 2 | . 1 . . 1 Detach . | . . . . . Swap 2 | . 1 . . 1 Drop 12 | . 5 . . 7 Fire 37 | . 10 1 1 25 Melee . | . . . . . Ram . | . . . . . Kick . | . . . . . Crush . | . . . . . Escape Stasis . | . . . . . Rewire 7 | . . . 7 . Trap . | . . . . . Miscellaneous . | . . . . . Route ------- -11/Junkyard -10/Materials -10/Mines -10/Exiles (discovered 2 exits: [*Min x2]) -9/Mines History --------- Turn | Location | Event 15 | -11/Junkyard | Discovered new exit (range 15) 82 | -11/Junkyard | Entered Materials 266 | -10/Materials | Met 8R-AWN 298 | -10/Materials | Discovered new exit (range 16) 306 | -10/Materials | Build established: Mutant 319 | -10/Materials | Entered Mines 321 | -10/Mines | Followed 8R-AWN into the Mines 334 | -10/Mines | Learned location of Zion (-7) 388 | -10/Mines | Discovered new exit (range 6) 451 | -10/Mines | Entered Exiles 485 | -10/Exiles | Welcomed by 8R-AWN 510 | -10/Exiles | Met EX-HEX 577 | -10/Exiles | Met EX-BIN 608 | -10/Exiles | Aligned with FarCom system 609 | -10/Exiles | Given EX-Vault access code 884 | -10/Exiles | Met EX-DEC 953 | -10/Exiles | Discovered new exit (range 10) 1065 | -10/Exiles | Visited The Gauntlet 1285 | -10/Exiles | Learned about 8R-AWN's background 1316 | -10/Exiles | Discovered new exit (range 15) 1741 | -10/Exiles | Entered Mines 1759 | -9/Mines | Met a Derelict bent on vengeance 1850 | -9/Mines | Learned Materials trap positions 1896 | -9/Mines | Found a hidden stash of uninstalled traps 2012 | -9/Mines | Core integrity fell below 50% 2025 | -9/Mines | Core integrity fell below 20% 2040 | -9/Mines | Lost 6 parts (1p2n1u2w) 2057 | -9/Mines | Destroyed by Y-45 Defender with Beam Rifle Last Messages --------------- 01911_ Dropped Lgt. Treads. 01912_ Dropped Aluminum Leg. 01912_ Dropped Lgt. Treads. 01914_ Acquired Aluminum Leg. 01920_ Acquired EMP Trap. 01928_ R-06 Scavenger collects Lgt. Treads. 01935_ Dropped EMP Trap. 01948_ Acquired EMP Trap. 01966_ Dropped EMP Trap. 01981_ Aluminum Leg destroyed. 01988_ Critical hit (Burn: +37). 01991_ Lgt. Cannon destroyed. 01994_ Aluminum Leg destroyed. 01995_ U-05 Engineer builds a Door. 02002_ Structural Scanner destroyed. 02003_ Lgt. Assault Rifle destroyed. 02009_ Ion Engine destroyed. 02021_ Critical hit (Burn: +37). 02023_ U-05 Engineer builds a Door. 02028_ Dropped EMP Trap. Map ----- +----------------------------------------------------+ | ???## ##?## """ ##?????????????????? | | ??###*##?## ##?????????????????? | | ?#### ##### ##?????????????????? | | ?### #########T#####?????????????????? | | ?## ##############?????????????????? | | ?## #######????????????????????? | | ?## ###???????????????????????? | | ?##% ###???????????????????????? | | ?## ##???????????????????????? | | ?## ##???????????????????????? | | ?## ##### ###???????????????????????? | | ?## ########### ?????????????????????? | | ?## ########### """?????????????????? | | ?## """?????????????????? | | ?## ########### ??????????????? | | ### ########### ?????????????????????? | | ### ###??????????????????????????????? | | ## ###?????????????????????????????? | | ## ####????????????????????????????? | | ### #######????????????????????????? | | ### ########??????????????????????? | | ?## #########?????????????????? | | ?### ########????????????????? | | ?###### ## ###????????????????? | | ??####### ##????????????????? | | ?????#### @ ##????????????????? | | ?????#### YY ###?#####??????????? | | ?????### u## ####?######?????????? | | ?????## #########?? ###?????????? | | ?????## && ########### ###????????? | | ?????### ####???#### ###????????? | | ?????### ######### ##????????? | | ??????## ######## #????????? | | ??????## #????????? | | ??????## & ## ????????? | | ??????######### ####?????????????????? | | ??????##### ###?????????????????? | | ???????## ##?????????????????? | | ??##"?? # & ##?????????????????? | | ??## % + ##?????????????????? | | ??## $+ ##?????????????????? | | ??##"!! # ##?????????????????? | | ??###![## ###?????????????????? | | ??######### ###?????????????????? | | ???########### ##??????????????????? | | ?????????###### ##??????????????????? | | ????????????#### ????????????????? | | ?????????????######## ????????????????? | | ???????????????###### ????????????????? | | ??????????????????????????????????????? | +----------------------------------------------------+ Best States ------------- Heat Dissipation 25 Energy Generation 10 Energy Capacity 250 Matter Stores 274 Matter Capacity 300 Sight Range 16 Terrain Scan Density 10 Evasion (%) 55 Item Schematics ----------------- None Robot Schematics ------------------ None Fabricated ------------ Nothing Alien Tech Used ----------------- None Achievements -------------- Librarian Tourist Challenges ------------ None Game ------ Seed LayeredDimensionalSheargun Manual? 0 Play Time 00:19:26 Cumulative 2.6 hours Start 2023.10.29 @ 12:32:42 End 2023.10.29 @ 12:53:33 Sessions 1 Manual Loads 0 Difficulty Rogue Special Mode None Game No. 8 Rogue 8 Adventurer 0 Explorer 0 Win Type - Total 0 Types 0/0/0/0/0/0/0/0/0 Lore% 5 Gallery% 6 Achievement% 5 Wizard Run 0 Options --------- ASCII 0 Keyboard 1 Movement Arrows Keybinds 0 Fullscreen 1 Font 18/Terminus Map View 76x50 Tactical HUD 1 Map Filters NONE Filters NONE Steam 1 RUN: 8c3907ab-8ae6-4d11-a8a7-53fc3107d7a3